fUST/lending_fUST_20240720
["ID","MTS","AMOUNT","RATE_DAILY","PERIOD"]
[332659600,1721406666915,-612.32300752,0.00019452,2]
[332659601,1721406666927,-500.0,0.00019452,2]
[332659602,1721406666940,-500.0,0.00019452,2]
[332659603,1721406666951,-500.0,0.00019452,2]
[332659604,1721406666964,-500.0,0.00019452,2]
[332659605,1721406666976,-500.0,0.00019452,2]
[332659606,1721406666987,-500.0,0.00019452,2]
[332659607,1721406666999,-500.0,0.00019452,2]
[332659608,1721406667011,-500.0,0.00019452,2]
[332659609,1721406667027,-500.0,0.00019452,2]
[332659610,1721406667050,-500.0,0.00019452,2]
[332659611,1721406667074,-500.0,0.00019452,2]
[332659612,1721406667097,-500.0,0.00019452,2]
[332659613,1721406667120,-500.0,0.00019452,2]
[332659614,1721406667159,-500.0,0.00019452,2]
[332659615,1721406667191,-442.55,0.00019452,2]
[332659616,1721406667203,-504.0780513,0.00019452,2]
[332659617,1721406667214,-500.0,0.00019452,2]
[332659618,1721406667226,-500.0,0.00019452,2]
[332659619,1721406667237,-500.0,0.00019452,2]
[332659620,1721406667248,-500.0,0.00019452,2]
[332659621,1721406667260,-500.0,0.00019452,2]
[332659622,1721406667272,-500.0,0.00019452,2]
[332659623,1721406667283,-500.0,0.00019452,2]
[332659624,1721406667295,-500.0,0.00019452,2]
[332659625,1721406667308,-500.0,0.00019452,2]
[332659626,1721406667320,-500.0,0.00019452,2]
[332659627,1721406667331,-500.0,0.00019452,2]
[332659628,1721406667341,-500.0,0.00019452,2]
[332659629,1721406667350,-500.0,0.00019452,2]
[332659630,1721406667360,-500.0,0.00019452,2]
[332659631,1721406667370,-500.0,0.00019452,2]
[332659632,1721406667381,-500.0,0.00019452,2]
[332659633,1721406667392,-500.0,0.00019452,2]
[332659634,1721406667402,-500.0,0.00019452,2]
[332659635,1721406667411,-500.0,0.00019452,2]
[332659636,1721406667420,-290.64164859,0.00019452,2]
[332659637,1721406667429,-500.0,0.00019452,2]
[332659638,1721406667438,-500.0,0.00019452,2]
[332659639,1721406667448,-500.0,0.00019452,2]
[332659640,1721406667457,-500.0,0.00019452,2]
[332659641,1721406667466,-500.0,0.00019452,2]
[332659642,1721406667476,-500.0,0.00019452,2]
[332659643,1721406667486,-500.0,0.00019452,2]
[332659644,1721406667495,-500.0,0.00019452,2]
[332659645,1721406667504,-500.0,0.00019452,2]
[332659646,1721406667513,-500.0,0.00019452,2]
[332659647,1721406667522,-500.0,0.00019452,2]
[332659648,1721406667532,-500.0,0.00019452,2]
[332659649,1721406667541,-500.0,0.00019452,2]
[332659650,1721406667550,-500.0,0.00019452,2]
[332659651,1721406667559,-500.0,0.00019452,2]
[332659652,1721406667568,-500.0,0.00019452,2]
[332659653,1721406667577,-500.0,0.00019452,2]
[332659654,1721406667587,-500.0,0.00019452,2]
[332659655,1721406667596,-500.0,0.00019452,2]
[332659656,1721406667605,-500.0,0.00019452,2]
[332659657,1721406667614,-317.76184342,0.00019452,2]
[332659658,1721406667624,-500.0,0.00019452,2]
[332659659,1721406667977,-500.0,0.00019452,2]
[332659660,1721406667995,-500.0,0.00019452,2]
[332659661,1721406668004,-339.54805897,0.00019452,2]
[332659662,1721406668015,-500.0,0.00019452,2]
[332659663,1721406668025,-550.8032759,0.00019452,2]
[332659664,1721406668035,-500.0,0.00019452,2]
[332659665,1721406668044,-500.0,0.00019452,2]
[332659666,1721406668053,-500.0,0.00019452,2]
[332659667,1721406668063,-500.0,0.00019452,2]
[332659668,1721406668073,-500.0,0.00019452,2]
[332659669,1721406668082,-500.0,0.00019452,2]
[332659670,1721406668091,-500.0,0.00019452,2]
[332659671,1721406668101,-500.0,0.00019452,2]
[332659672,1721406668110,-500.0,0.00019452,2]
[332659673,1721406668119,-500.0,0.00019452,2]
[332659674,1721406668130,-500.0,0.00019452,2]
[332659675,1721406668140,-500.0,0.00019452,2]
[332659676,1721406668150,-500.0,0.00019452,2]
[332659677,1721406668161,-179.67497772,0.00019452,2]
[332659678,1721406668170,-500.0,0.00019452,2]
[332659679,1721406668180,-259.5351481,0.00019452,2]
[332659680,1721406668192,-500.0,0.00019452,2]
[332659681,1721406668211,-500.0,0.00019452,2]
[332659682,1721406668231,-500.0,0.00019452,2]
[332659683,1721406668241,-500.0,0.00019452,2]
[332659684,1721406668250,-500.0,0.00019452,2]
[332659685,1721406668260,-501.67718817,0.00019452,2]
[332659686,1721406668269,-500.0,0.00019452,2]
[332659687,1721406668279,-500.0,0.00019452,2]
[332659688,1721406668290,-500.0,0.00019452,2]
[332659689,1721406668300,-500.0,0.00019452,2]
[332659690,1721406668310,-500.0,0.00019452,2]
[332659691,1721406668321,-502.94551921,0.00019452,2]
[332659692,1721406668330,-500.0,0.00019452,2]
[332659693,1721406668339,-500.0,0.00019452,2]
[332659694,1721406668348,-500.0,0.00019452,2]
[332659695,1721406668357,-500.0,0.00019452,2]
[332659696,1721406668367,-500.0,0.00019452,2]
[332659697,1721406668378,-500.0,0.00019452,2]
[332659698,1721406668389,-500.0,0.00019452,2]
[332659699,1721406668398,-500.0,0.00019452,2]
[332659700,1721406668407,-500.0,0.00019452,2]
[332659701,1721406668417,-500.0,0.00019452,2]
[332659702,1721406668426,-500.0,0.00019452,2]
[332659703,1721406668435,-500.0,0.00019452,2]
[332659704,1721406668445,-500.0,0.00019452,2]
[332659705,1721406668455,-500.0,0.00019452,2]
[332659706,1721406668464,-500.0,0.00019452,2]
[332659707,1721406668474,-500.0,0.00019452,2]
[332659708,1721406668484,-500.0,0.00019452,2]
[332659709,1721406668494,-500.0,0.00019452,2]
[332659710,1721406668504,-500.0,0.00019452,2]
[332659711,1721406668514,-500.0,0.00019452,2]
[332659712,1721406668524,-500.0,0.00019452,2]
[332659713,1721406668534,-500.0,0.00019452,2]
[332659714,1721406668544,-500.0,0.00019452,2]
[332659715,1721406668554,-500.0,0.00019452,2]
[332659716,1721406668565,-517.57189651,0.00019452,2]
[332659717,1721406668575,-500.0,0.00019452,2]
[332659718,1721406668585,-500.0,0.00019452,2]
[332659719,1721406668596,-508.73289913,0.00019452,2]
[332659720,1721406668606,-500.0,0.00019452,2]
[332659721,1721406668616,-500.0,0.00019452,2]
[332659722,1721406668629,-503.47645266,0.00019452,2]
[332659723,1721406668646,-500.0,0.00019452,2]
[332659724,1721406668656,-500.0,0.00019452,2]
[332659725,1721406668666,-500.0,0.00019452,2]
[332659726,1721406668682,-500.0,0.00019452,2]
[332659727,1721406668695,-500.0,0.00019452,2]
[332659728,1721406668706,-500.0,0.00019452,2]
[332659729,1721406668718,-500.0,0.00019452,2]
[332659730,1721406668728,-500.0,0.00019452,2]
[332659731,1721406668738,-500.0,0.00019452,2]
[332659732,1721406668748,-500.0,0.00019452,2]
[332659733,1721406668757,-500.0,0.00019452,2]
[332659734,1721406668767,-500.0,0.00019452,2]
[332659735,1721406668776,-500.0,0.00019452,2]
[332659736,1721406668784,-500.0,0.00019452,2]
[332659737,1721406668794,-500.0,0.00019452,2]
[332659738,1721406668804,-500.0,0.00019452,2]
[332659739,1721406668813,-500.0,0.00019452,2]
[332659740,1721406668823,-500.0,0.00019452,2]
[332659741,1721406668832,-500.0,0.00019452,2]
[332659742,1721406668842,-500.0,0.00019452,2]
[332659743,1721406668851,-500.0,0.00019452,2]
[332659744,1721406668861,-501.28911878,0.00019452,2]
[332659745,1721406668870,-500.0,0.00019452,2]
[332659746,1721406668883,-500.0,0.00019452,2]
[332659747,1721406668892,-500.0,0.00019452,2]
[332659748,1721406668901,-500.0,0.00019452,2]
[332659749,1721406668911,-500.0,0.00019452,2]
[332659750,1721406668922,-500.0,0.00019452,2]
[332659751,1721406668932,-500.0,0.00019452,2]
[332659752,1721406668942,-500.0,0.00019452,2]
[332659753,1721406668952,-500.0,0.00019452,2]
[332659754,1721406668961,-500.0,0.00019452,2]
[332659755,1721406668970,-500.0,0.00019452,2]
[332659756,1721406668979,-500.0,0.00019452,2]
[332659757,1721406668989,-500.0,0.00019452,2]
[332659758,1721406668998,-500.0,0.00019452,2]
[332659759,1721406669007,-500.0,0.00019452,2]
[332659760,1721406669017,-500.0,0.00019452,2]
[332659761,1721406669027,-500.0,0.00019452,2]
[332659762,1721406669037,-571.84700719,0.00019452,2]
[332659763,1721406669048,-500.0,0.00019452,2]
[332659764,1721406669057,-500.0,0.00019452,2]
[332659765,1721406669067,-500.0,0.00019452,2]
[332659766,1721406669076,-500.0,0.00019452,2]
[332659767,1721406669086,-500.0,0.00019452,2]
[332659768,1721406669095,-500.0,0.00019452,2]
[332659769,1721406669104,-500.0,0.00019452,2]
[332659770,1721406669113,-500.0,0.00019452,2]
[332659771,1721406669123,-500.0,0.00019452,2]
[332659772,1721406669135,-500.0,0.00019452,2]
[332659773,1721406669145,-500.0,0.00019452,2]
[332659774,1721406669154,-500.0,0.00019452,2]
[332659775,1721406669163,-500.0,0.00019452,2]
[332659776,1721406669173,-500.0,0.00019452,2]
[332659777,1721406669182,-500.0,0.00019452,2]
[332659778,1721406669192,-500.0,0.00019452,2]
[332659779,1721406669201,-500.0,0.00019452,2]
[332659780,1721406669209,-500.0,0.00019452,2]
[332659781,1721406669218,-500.0,0.00019452,2]
[332659782,1721406669229,-500.0,0.00019452,2]
[332659783,1721406669238,-500.0,0.00019452,2]
[332659784,1721406669247,-500.0,0.00019452,2]
[332659785,1721406669257,-804.65,0.00019452,2]
[332659786,1721406669266,-500.0,0.00019452,2]
[332659787,1721406669276,-502.39389801,0.00019452,2]
[332659788,1721406669285,-500.0,0.00019452,2]
[332659789,1721406669295,-500.0,0.00019452,2]
[332659790,1721406669375,-500.0,0.00019452,2]
[332659791,1721406669389,-500.0,0.00019452,2]
[332659792,1721406669399,-500.0,0.00019452,2]
[332659793,1721406669408,-500.0,0.00019452,2]
[332659794,1721406669417,-501.22756596,0.00019452,2]
[332659795,1721406669427,-500.0,0.00019452,2]
[332659796,1721406669436,-336.69380588,0.00019452,2]
[332659797,1721406669446,-500.0,0.00019452,2]
[332659798,1721406669455,-500.0,0.00019452,2]
[332659799,1721406669465,-157.77754031,0.00019452,2]
[332659800,1721406669475,-500.0,0.00019452,2]
[332659801,1721406669485,-500.0,0.00019452,2]
[332659802,1721406669496,-500.0,0.00019452,2]
[332659803,1721406669505,-500.0,0.00019452,2]
[332659804,1721406669515,-500.0,0.00019452,2]
[332659805,1721406669525,-500.0,0.00019452,2]
[332659806,1721406669535,-500.0,0.00019452,2]
[332659807,1721406669545,-500.0,0.00019452,2]
[332659808,1721406669556,-500.0,0.00019452,2]
[332659809,1721406669567,-500.0,0.00019452,2]
[332659810,1721406669577,-500.0,0.00019452,2]
[332659811,1721406669587,-500.0,0.00019452,2]
[332659812,1721406669597,-500.0,0.00019452,2]
[332659813,1721406669607,-500.0,0.00019452,2]
[332659814,1721406669617,-500.0,0.00019452,2]
[332659815,1721406669627,-500.0,0.00019452,2]
[332659816,1721406669643,-500.0,0.00019452,2]
[332659817,1721406669653,-500.0,0.00019452,2]
[332659818,1721406669662,-500.0,0.00019452,2]
[332659819,1721406669672,-500.0,0.00019452,2]
[332659820,1721406669683,-569.11,0.00019452,2]
[332659821,1721406669692,-500.0,0.00019452,2]
[332659822,1721406669702,-500.0,0.00019452,2]
[332659823,1721406669713,-500.0,0.00019452,2]
[332659824,1721406669723,-500.0,0.00019452,2]
[332659825,1721406669732,-500.0,0.00019452,2]
[332659826,1721406669742,-399.31590663,0.00019452,2]
[332659827,1721406669752,-617.49,0.00019452,2]
[332659828,1721406669762,-500.0,0.00019452,2]
[332659829,1721406669772,-500.0,0.00019452,2]
[332659830,1721406669782,-500.0,0.00019452,2]
[332659831,1721406669793,-500.0,0.00019452,2]
[332659832,1721406669804,-500.0,0.00019452,2]
[332659833,1721406669815,-500.0,0.00019452,2]
[332659834,1721406669825,-500.0,0.00019452,2]
[332659835,1721406669835,-575.82,0.00019452,2]
[332659836,1721406669845,-500.0,0.00019452,2]
[332659837,1721406669854,-500.0,0.00019452,2]
[332659838,1721406669863,-500.0,0.00019452,2]
[332659839,1721406669873,-500.0,0.00019452,2]
[332659840,1721406669888,-180.82891336,0.00019452,2]
[332659841,1721406669897,-505.87608225,0.00019452,2]
[332659842,1721406669907,-500.0,0.00019452,2]
[332659843,1721406669916,-500.0,0.00019452,2]
[332659844,1721406669925,-500.0,0.00019452,2]
[332659845,1721406669935,-500.0,0.00019452,2]
[332659846,1721406669944,-500.0,0.00019452,2]
[332659847,1721406669954,-500.0,0.00019452,2]
[332659848,1721406669963,-500.0,0.00019452,2]
[332659849,1721406669972,-500.0,0.00019452,2]
[332659850,1721406669981,-500.0,0.00019452,2]
[332659851,1721406669991,-500.0,0.00019452,2]
[332659852,1721406670000,-500.0,0.00019452,2]
[332659853,1721406670010,-500.0,0.00019452,2]
[332659854,1721406670019,-500.0,0.00019452,2]
[332659855,1721406670028,-186.07042183,0.00019452,2]
[332659856,1721406670038,-500.0,0.00019452,2]
[332659857,1721406670047,-500.0,0.00019452,2]
[332659858,1721406670056,-500.0,0.00019452,2]
[332659859,1721406670065,-500.0,0.00019452,2]
[332659860,1721406670075,-500.0,0.00019452,2]
[332659861,1721406670084,-507.31409717,0.00019452,2]
[332659862,1721406670093,-500.0,0.00019452,2]
[332659863,1721406670103,-500.0,0.00019452,2]
[332659864,1721406670112,-500.0,0.00019452,2]
[332659865,1721406670121,-500.0,0.00019452,2]
[332659866,1721406670133,-500.0,0.00019452,2]
[332659867,1721406670142,-500.0,0.00019452,2]
[332659868,1721406670151,-500.0,0.00019452,2]
[332659869,1721406670161,-500.0,0.00019452,2]
[332659870,1721406670170,-500.0,0.00019452,2]
[332659871,1721406670179,-500.0,0.00019452,2]
[332659872,1721406670188,-712.18,0.00019452,2]
[332659873,1721406670198,-500.0,0.00019452,2]
[332659874,1721406670207,-575.36970071,0.00019452,2]
[332659875,1721406670216,-500.0,0.00019452,2]
[332659876,1721406670225,-500.0,0.00019452,2]
[332659877,1721406670234,-500.0,0.00019452,2]
[332659878,1721406670243,-500.0,0.00019452,2]
[332659879,1721406670253,-500.0,0.00019452,2]
[332659880,1721406670262,-500.0,0.00019452,2]
[332659881,1721406670272,-500.0,0.00019452,2]
[332659882,1721406670281,-509.66813548,0.00019452,2]
[332659883,1721406670291,-500.0,0.00019452,2]
[332659884,1721406670300,-190.51,0.00019452,2]
[332659885,1721406670310,-500.0,0.00019452,2]
[332659886,1721406670320,-592.95681056,0.00019452,2]
[332659887,1721406670329,-500.0,0.00019452,2]
[332659888,1721406670340,-500.0,0.00019452,2]
[332659889,1721406670361,-500.0,0.00019452,2]
[332659890,1721406670384,-500.0,0.00019452,2]
[332659891,1721406670407,-503.59361011,0.00019452,2]
[332659892,1721406670431,-566.80909548,0.00019452,2]
[332659893,1721406670455,-500.0,0.00019452,2]
[332659894,1721406670477,-519.42046231,0.00019452,2]
[332659895,1721406670500,-500.0,0.00019452,2]
[332659896,1721406670516,-3186.36,0.00019452,2]
[332659897,1721406670528,-500.0,0.00019452,2]
[332659898,1721406670538,-500.0,0.00019452,2]
[332659899,1721406670547,-500.0,0.00019452,2]
[332659900,1721406670556,-500.0,0.00019452,2]
[332659901,1721406670565,-500.0,0.00019452,2]
[332659902,1721406670575,-500.0,0.00019452,2]
[332659903,1721406670584,-500.0,0.00019452,2]
[332659904,1721406670593,-500.0,0.00019452,2]
[332659905,1721406670602,-500.0,0.00019452,2]
[332659906,1721406670613,-500.0,0.00019452,2]
[332659907,1721406670624,-500.0,0.00019452,2]
[332659908,1721406670637,-500.0,0.00019452,2]
[332659909,1721406670646,-500.0,0.00019452,2]
[332659910,1721406670656,-500.0,0.00019452,2]
[332659911,1721406670665,-500.0,0.00019452,2]
[332659912,1721406670675,-500.0,0.00019452,2]
[332659913,1721406670684,-257.89903229,0.00019452,2]
[332659914,1721406670780,-242.10096771,0.00019452,2]
[332659915,1721406670790,-500.0,0.00019452,2]
[332659916,1721406670800,-500.0,0.00019452,2]
[332659917,1721406670809,-500.0,0.00019452,2]
[332659918,1721406670819,-33.02403229,0.00019452,2]
[332659919,1721406792851,5105.863707,0.000207,30]
[332659935,1721407392242,150.0,0.000207,30]
[332659936,1721407469119,159.8423972,9.999e-05,2]
[332659937,1721407489521,156.50340593,9.999e-05,2]
[332659938,1721407494237,9330.5898,0.000225,30]
[332659939,1721407505322,3776.426534,9.999e-05,2]
[332659940,1721407508825,689.26662371,9.999e-05,2]
[332659941,1721407510852,2108.86510417,9.999e-05,2]
[332659942,1721407518412,604.18571337,9.999e-05,2]
[332659943,1721407521138,4705.80644641,9.999e-05,2]
[332659944,1721407522327,5871.85052297,9.999e-05,2]
[332659945,1721407525830,154.8257247,9.999e-05,2]
[332659946,1721407532656,155.1341261,9.999e-05,2]
[332659947,1721407538016,156.45882845,0.0001212,2]
[332659948,1721407542895,441.30036835,9.999e-05,2]
[332659949,1721407551338,154.83424936,0.0001212,2]
[332659950,1721407558306,208.24444809,0.0001212,2]
[332659951,1721407561892,156.3978779,9.999e-05,2]
[332659954,1721407705639,209.53568661,9.999e-05,2]
[332659955,1721407748342,2248.51879704,0.0001212,2]
[332659956,1721407755138,154.85288975,0.0001212,2]
[332659957,1721407757880,468.92076747,0.0001212,2]
[332659958,1721407762788,518.8113678,0.0001212,2]
[332659959,1721407766937,257.04469015,0.0001212,2]
[332659988,1721407832419,-476.14397417,0.00014691,2]
[332659991,1721407832432,-42.66739363,0.00014691,2]
[332659993,1721407832442,-166.666666,0.00014795,2]
[332659995,1721407832452,-150.0,0.00015,2]
[332659997,1721407832462,-102.89394037,0.00015,2]
[332660102,1721407838436,-1367.9072101,0.00015,2]
[332660104,1721407838449,-62.42898191,0.00015,2]
[332660106,1721407838458,-353.99526118,0.00015708,2]
[332660108,1721407838469,-770.59871623,0.00015708,2]
[332660110,1721407838481,-858.43071075,0.00015708,2]
[332660112,1721407838491,-150.0,0.00016,2]
[332660114,1721407838501,-193.1736637,0.00016371,2]
[332660117,1721407838511,-166.666666,0.00016438,2]
[332660119,1721407838520,-179.7921317,0.00016449,2]
[332660121,1721407838530,-300.0,0.00016571,2]
[332660123,1721407838540,-205.0,0.00016571,2]
[332660124,1721407838551,-23772.47454035,0.00016572,2]
[332660459,1721407841941,-1117.52545965,0.00016572,2]
[332660460,1721407841951,-183.29204514,0.000167,2]
[332660461,1721407841961,-183.29204514,0.000167,2]
[332660462,1721407841970,-183.29204514,0.000167,2]
[332660463,1721407841980,-150.0,0.00017,2]
[332660464,1721407841991,-20746.06049871,0.00017881,2]
[332660465,1721407842002,-150.0,0.00018,2]
[332660466,1721407842011,-293.756678,0.00018082,2]
[332660467,1721407842021,-206.5463282,0.00018082,2]
[332660468,1721407842030,-293.756678,0.00018082,2]
[332660469,1721407842040,-293.756678,0.00018082,2]
[332660470,1721407842050,-206.5463282,0.00018082,2]
[332660471,1721407842059,-610.67621385,0.00018124,2]
[332660472,1721407842071,-500.0,0.00018124,2]
[332660473,1721407842081,-204.03151688,0.00018124,2]
[332660474,1721407842090,-420.0,0.00018228,2]
[332660475,1721407842100,-166.666666,0.00018672,2]
[332660476,1721407842110,-155.18379875,0.00018786,2]
[332660477,1721407842120,-309.18304489,0.00018799,2]
[332660478,1721407842133,-393.24410992,0.00018825,2]
[332660479,1721407842143,-4375.05910698,0.00018825,2]
[332660480,1721407842152,-1016.8548112,0.00018845,2]
[332660481,1721407842163,-392.26521948,0.00018845,2]
[332660482,1721407842173,-1608.72385608,0.000189,2]
[332660483,1721407842183,-293.756678,0.00018904,2]
[332660484,1721407842192,-293.756678,0.00018904,2]
[332660485,1721407842218,-292.5440033,0.00018904,2]
[332660486,1721407842229,-155.77050444,0.00018945,2]
[332660487,1721407842240,-155.77050444,0.00018945,2]
[332660488,1721407842250,-980.61422822,0.00018945,2]
[332660489,1721407842261,-241.34,0.00018959,3]
[332660490,1721407842271,-724.06,0.00018959,3]
[332660491,1721407842281,-980.61422822,0.00018969,2]
[332660492,1721407842292,-18003.94994234,0.00018969,2]
[332660493,1721407842303,-2123.06633741,0.00018989,2]
[332660494,1721407842314,-150.0,0.00019,2]
[332660495,1721407842324,-815.16071631,0.00019,2]
[332660496,1721407842334,-24845.69523508,0.000191,2]
[332660497,1721407842348,-5154.30476492,0.000191,2]
[332660498,1721407842358,-5301.50746621,0.00019102,2]
[332660529,1721407843407,-9815.77704874,0.00019102,2]
[332660530,1721407843418,-3946.50502075,0.00019139,20]
[332660531,1721407843428,-277.07523786,0.00019147,2]
[332660532,1721407843438,-567.73879262,0.00019153,2]
[332660533,1721407843448,-500.0,0.00019166,2]
[332660534,1721407843458,-297.0487053,0.00019166,2]
[332660535,1721407843468,-622.07161156,0.00019166,2]
[332660536,1721407843478,-500.0,0.00019166,2]
[332660537,1721407843488,-400.0,0.00019166,2]
[332660538,1721407843498,-338.78617889,0.00019166,2]
[332660539,1721407843509,-169.76339669,0.00019166,2]
[332660540,1721407843518,-500.0,0.00019166,2]
[332660541,1721407843528,-500.0,0.00019166,2]
[332660542,1721407843538,-500.0,0.00019166,2]
[332660543,1721407843547,-280.12530313,0.00019166,2]
[332660544,1721407843557,-500.0,0.00019166,2]
[332660545,1721407843567,-620.38917405,0.00019166,2]
[332660546,1721407843576,-2528.99331165,0.00019167,2]
[332660547,1721407843586,-30000.0,0.00019167,2]
[332660548,1721407843596,-154.82195475,0.00019167,2]
[332660549,1721407843606,-1638.39181986,0.00019167,2]
[332660550,1721407843616,-561.51244417,0.00019167,2]
[332660552,1721407843841,-1066.55179023,0.00019167,2]
[332660553,1721407843851,-5057.9866233,0.00019168,2]
[332660555,1721407843860,-886.94388172,0.00019177,2]
[332660557,1721407843870,-3085.40967143,0.00019177,2]
[332660560,1721407843880,-500.0,0.00019178,2]
[332660563,1721407843890,-500.0,0.00019178,2]
[332660566,1721407843900,-500.0,0.00019178,2]
[332660569,1721407843910,-500.0,0.00019178,2]
[332660572,1721407843920,-500.0,0.00019178,2]
[332660575,1721407843930,-500.0,0.00019178,2]
[332660578,1721407843940,-500.0,0.00019178,2]
[332660581,1721407843950,-256.98708877,0.00019178,2]
[332660583,1721407843960,-500.0,0.00019178,2]
[332660585,1721407843970,-500.0,0.00019178,2]
[332660587,1721407843980,-500.0,0.00019178,2]
[332660589,1721407843992,-500.0,0.00019178,2]
[332660590,1721407844004,-500.0,0.00019178,2]
[332660591,1721407844014,-500.0,0.00019178,2]
[332660592,1721407844320,-500.0,0.00019178,2]
[332660593,1721407844331,-500.0,0.00019178,2]
[332660594,1721407844342,-500.0,0.00019178,2]
[332660595,1721407844351,-540.86,0.00019178,2]
[332660596,1721407844361,-500.0,0.00019178,2]
[332660597,1721407844371,-500.0,0.00019178,2]
[332660598,1721407844382,-546.86852375,0.00019178,2]
[332660599,1721407844391,-500.0,0.00019178,2]
[332660600,1721407844401,-500.0,0.00019178,2]
[332660601,1721407844411,-500.0,0.00019178,2]
[332660602,1721407844421,-500.0,0.00019178,2]
[332660603,1721407844431,-500.0,0.00019178,2]
[332660604,1721407844443,-500.0,0.00019178,2]
[332660605,1721407844455,-500.0,0.00019178,2]
[332660606,1721407844464,-563.0327418,0.00019178,2]
[332660607,1721407844475,-500.0,0.00019178,2]
[332660608,1721407844486,-192.07471083,0.00019178,2]
[332660609,1721407844497,-500.0,0.00019178,2]
[332660610,1721407844506,-500.0,0.00019178,2]
[332660611,1721407844516,-500.0,0.00019178,2]
[332660612,1721407844526,-500.0,0.00019178,2]
[332660613,1721407844536,-500.0,0.00019178,2]
[332660614,1721407844546,-500.0,0.00019178,2]
[332660615,1721407844556,-500.0,0.00019178,2]
[332660616,1721407844566,-500.0,0.00019178,2]
[332660617,1721407844575,-495.19013268,0.00019178,2]
[332660618,1721407844585,-500.0,0.00019178,2]
[332660619,1721407844594,-500.0,0.00019178,2]
[332660620,1721407844604,-500.0,0.00019178,2]
[332660621,1721407844614,-500.0,0.00019178,2]
[332660622,1721407844624,-500.0,0.00019178,2]
[332660623,1721407844636,-500.0,0.00019178,2]
[332660624,1721407844646,-500.0,0.00019178,2]
[332660625,1721407844656,-511.55262855,0.00019178,2]
[332660626,1721407844666,-513.12136412,0.00019178,2]
[332660627,1721407844676,-500.0,0.00019178,2]
[332660628,1721407844686,-500.0,0.00019178,2]
[332660629,1721407844695,-500.0,0.00019178,2]
[332660630,1721407844707,-500.0,0.00019178,2]
[332660631,1721407844717,-500.0,0.00019178,2]
[332660632,1721407844727,-500.0,0.00019178,2]
[332660633,1721407844737,-500.0,0.00019178,2]
[332660634,1721407844748,-623.09,0.00019178,2]
[332660635,1721407844757,-500.0,0.00019178,2]
[332660636,1721407844767,-7906.59,0.00019178,2]
[332660637,1721407844776,-500.0,0.00019178,2]
[332660638,1721407844785,-500.0,0.00019178,2]
[332660639,1721407844795,-500.0,0.00019178,2]
[332660640,1721407844804,-506.01830379,0.00019178,2]
[332660641,1721407844814,-500.0,0.00019178,2]
[332660642,1721407844823,-500.0,0.00019178,2]
[332660643,1721407844834,-500.0,0.00019178,2]
[332660644,1721407844843,-500.0,0.00019178,2]
[332660645,1721407844852,-500.0,0.00019178,2]
[332660646,1721407844861,-500.0,0.00019178,2]
[332660647,1721407844870,-500.0,0.00019178,2]
[332660648,1721407844879,-500.0,0.00019178,2]
[332660649,1721407844889,-500.0,0.00019178,2]
[332660650,1721407844898,-516.92020122,0.00019178,2]
[332660651,1721407844908,-500.0,0.00019178,2]